bitfinex/quotes_ETHUSD_20250808
["timestamp","ask_amount","ask_price","bid_price","bid_amount"]
[1754695471145,0.4948,4029.1,4029.0,2.48300546]
[1754695471340,0.4948,4029.1,4029.0,9.58411623]
[1754695471653,0.002,4029.2,4029.1,2.48194385]
[1754695471826,0.4969,4029.2,4029.1,2.48194385]
[1754695473828,0.4969,4029.2,4029.0,0.001]
[1754695474049,1.4966,4029.1,4029.0,0.001]
[1754695474349,1.65162429,4029.1,4029.0,0.001]
[1754695475334,4.13356814,4029.1,4029.0,0.001]
[1754695476042,1.65162429,4029.1,4029.0,0.001]
[1754695476626,1.6206,4029.1,4029.0,0.001]
[1754695476827,2.48732469,4029.1,4029.0,0.001]
[1754695480749,4.96926854,4029.1,4029.0,0.001]
[1754695480956,5.00029283,4029.1,4029.0,0.001]
[1754695481553,5.09971383,4029.1,4029.0,0.001]
[1754695483124,5.06868954,4029.1,4029.0,0.001]
[1754695483732,2.58674569,4029.1,4029.0,0.001]
[1754695483935,3.974421,4029.1,4029.0,7.10211077]
[1754695484243,3.875,4029.1,4029.0,7.56571077]
[1754695484435,3.875,4029.1,4029.0,10.04771623]
[1754695484756,3.875,4029.1,4029.0,11.46656044]
[1754695486156,3.875,4029.1,4029.0,2.94660546]
[1754695499975,3.875,4029.1,4029.0,2.48300546]
[1754695500764,4.351,4029.1,4029.0,2.48300546]
[1754695507544,5.80948,4029.1,4029.0,0.001]
[1754695507872,5.80948,4029.1,4028.5,0.001]
[1754695507873,0.55,4028.8,4028.5,0.001]
[1754695508067,3.75,4028.7,4028.5,0.001]
[1754695508297,4.6558,4028.7,4028.5,0.001]
[1754695508447,0.84089692,4028.6,4028.5,0.001]
[1754695508651,1.74669692,4028.6,4028.5,0.001]
[1754695514503,4.22894881,4028.6,4028.5,0.001]
[1754695514849,4.77894881,4028.6,4028.5,0.001]
[1754695515047,4.80997695,4028.6,4028.5,0.001]
[1754695515999,4.77894881,4028.6,4028.5,0.001]
[1754695516173,4.80997695,4028.6,4028.5,0.001]
[1754695518907,5.34468949,4028.6,4028.5,0.001]
[1754695519058,5.41310835,4028.6,4028.5,0.001]
[1754695520157,8.41310835,4028.6,4028.5,0.001]
[1754695521491,8.59927723,4028.6,4028.5,0.001]
[1754695524193,8.06456469,4028.6,4028.5,0.001]
[1754695524556,8.59815471,4028.6,4028.5,0.001]
[1754695530289,8.60015471,4028.6,4028.5,0.001]
[1754695541612,7.02035471,4028.6,4028.5,0.001]
[1754695541785,4.4727589,4028.6,4028.5,0.4551]
[1754695541984,6.97142077,4028.6,4028.5,0.4551]
[1754695542294,5.0227589,4028.6,4028.5,0.4551]
[1754695542498,0.002,4028.6,4028.5,0.4551]
[1754695542697,3.753,4028.6,4028.5,0.4574]
[1754695542890,3.753,4028.6,4028.5,0.4551]
[1754695547792,6.23525189,4028.6,4028.5,0.4551]
[1754695548780,8.25319252,4028.6,4028.5,0.001]
[1754695549010,8.73309252,4028.6,4028.5,0.001]
[1754695549215,9.73624517,4028.6,4028.5,0.001]
[1754695549804,9.83568917,4028.6,4028.5,0.001]
[1754695551583,9.95968917,4028.6,4028.5,0.001]
[1754695552284,12.95968917,4028.6,4028.5,0.001]
[1754695556188,13.14894876,4028.6,4028.5,0.001]
[1754695560509,12.20044876,4028.6,4028.5,0.001]
[1754695560894,10.73250813,4028.6,4028.5,0.4312]
[1754695561325,3.98150813,4028.6,4028.5,0.4312]
[1754695561627,7.19695548,4028.6,4028.5,0.4312]
[1754695561923,7.73150813,4028.6,4028.5,0.4312]
[1754695562485,5.14981224,4028.6,4028.5,0.4312]
[1754695562891,4.06525959,4028.6,4028.5,0.4312]
[1754695563204,4.61525959,4028.6,4028.5,0.4335]
[1754695563394,4.61525959,4028.6,4028.5,0.4312]
[1754695565592,4.426,4028.6,4028.5,0.4312]
[1754695565921,0.126,4028.6,4028.5,0.4335]
[1754695566122,3.876,4028.6,4028.5,0.4312]
[1754695571393,4.426,4028.6,4028.5,0.001]
[1754695571595,8.42639824,4028.6,4028.5,0.001]
[1754695572212,7.97419824,4028.6,4028.5,0.001]
[1754695572806,4.9252,4028.6,4028.5,0.001]
[1754695573109,4.45702814,4028.6,4028.5,0.001]
[1754695573409,4.426,4028.6,4028.5,0.001]
[1754695573917,0.676,4028.6,4028.5,0.4312]
[1754695574119,4.426,4028.6,4028.5,0.4312]
[1754695576035,3.876,4028.6,4028.5,0.4312]
[1754695578344,3.876,4028.6,4028.5,0.001]
[1754695578547,4.3752,4028.6,4028.5,0.001]
[1754695580543,3.876,4028.6,4028.5,0.001]
[1754695580753,0.126,4028.6,4028.5,2.91351351]
[1754695580932,3.875,4028.6,4028.5,2.91351351]
[1754695581253,0.126,4028.6,4028.5,2.91351351]
[1754695581412,3.751,4028.6,4028.5,2.91581351]
[1754695582617,3.751,4028.6,4028.5,2.91351351]
[1754695587230,3.751,4028.6,4028.5,0.001]
[1754695587435,3.875,4028.6,4028.5,0.001]
[1754695587634,4.3493,4028.6,4028.5,0.001]
[1754695589767,3.875,4028.6,4028.5,2.48331351]
[1754695590272,3.875,4028.6,4028.5,0.001]
[1754695590672,3.875,4028.6,4028.5,2.48331351]
[1754695591181,3.875,4028.6,4028.5,0.001]
[1754695592772,4.3493,4028.6,4028.5,0.001]
[1754695592975,4.7834,4028.6,4028.5,0.001]
[1754695593276,4.3493,4028.6,4028.5,0.001]
[1754695595047,4.7834,4028.6,4028.5,0.001]
[1754695597409,0.126,4028.6,4028.5,0.001]
[1754695597567,3.875,4028.6,4028.5,0.001]
[1754695598198,3.875,4028.6,4028.5,0.4644]
[1754695599664,3.875,4028.6,4028.5,0.001]
[1754695606719,4.3493,4028.6,4028.5,0.001]
[1754695617690,4.3493,4028.6,4028.5,2.48331351]
[1754695618392,4.3493,4028.6,4028.5,0.001]
[1754695619692,4.3493,4028.6,4028.5,2.48331351]
[1754695620463,3.875,4028.6,4028.5,2.48331351]
[1754695621306,4.3297,4028.6,4028.5,0.001]
[1754695621466,4.7859,4028.6,4028.5,0.001]
[1754695622377,4.3297,4028.6,4028.5,0.001]
[1754695626408,4.7859,4028.6,4028.5,0.001]
[1754695628989,5.51269936,4028.6,4028.5,0.001]
[1754695636318,7.99495125,4028.6,4028.5,0.001]
[1754695636618,8.54495125,4028.6,4028.5,0.001]
[1754695637002,9.08129023,4028.6,4028.5,0.001]
[1754695640602,8.54495125,4028.6,4028.5,0.001]
[1754695640799,9.08095998,4028.6,4028.5,0.001]
[1754695641001,9.08095952,4028.6,4028.5,0.001]
[1754695641524,8.54495125,4028.6,4028.5,0.001]
[1754695641905,9.26966786,4028.6,4028.5,0.001]
[1754695642222,8.73370813,4028.6,4028.5,0.001]
[1754695643218,6.25145624,4028.6,4028.5,0.001]
[1754695643420,8.27750813,4028.6,4028.5,0.001]
[1754695643722,5.79525624,4028.6,4028.5,0.001]
[1754695643889,0.126,4028.6,4028.5,0.001]
[1754695644096,3.874,4028.6,4028.5,2.94571351]
[1754695655232,3.874,4028.6,4028.5,0.4634]
[1754695655432,3.874,4028.6,4028.5,2.94571351]
[1754695655947,3.874,4028.6,4028.5,0.4634]
[1754695656149,3.874,4028.6,4028.5,0.001]
[1754695656441,4.3637,4028.6,4028.5,0.001]
[1754695657148,3.874,4028.6,4028.5,0.001]
[1754695657457,4.8131,4028.6,4028.5,0.001]
[1754695662357,5.3631,4028.6,4028.5,0.001]
[1754695662652,4.2397,4028.6,4028.5,0.001]
[1754695665114,4.6891,4028.6,4028.5,0.001]
[1754695666122,0.002,4028.6,4028.5,0.001]
[1754695666322,4.2387,4028.6,4028.5,0.001]
[1754695667018,4.6881,4028.6,4028.5,0.001]
[1754695671369,5.65333692,4028.6,4028.5,0.001]
[1754695672669,5.77733692,4028.6,4028.5,0.001]
[1754695674541,4.8121,4028.6,4028.5,0.001]
[1754695676327,4.8121,4028.6,4028.0,2.23902129]
[1754695676827,4.3627,4028.6,4028.0,2.23902129]
[1754695677071,0.124,4028.3,4028.0,2.70122129]
[1754695677265,3.747,4028.2,4028.0,2.23902129]
[1754695677465,3.747,4028.2,4028.1,0.4622]
[1754695678884,4.6634,4028.2,4027.7,0.001]
[1754695679186,0.124,4027.9,4027.7,2.48375842]
[1754695679385,3.748,4027.8,4027.7,2.48375842]
[1754695680179,3.748,4027.8,4027.7,2.94595842]
[1754695681077,0.124,4027.9,4027.8,2.48274492]
[1754695681288,0.124,4027.9,4027.8,11.47093463]
[1754695683476,0.124,4027.9,4027.8,11.00873463]
[1754695683862,3.748,4028.0,4027.9,2.48268328]
[1754695684253,3.748,4028.0,4027.9,2.94488328]
[1754695686876,3.748,4028.0,4027.9,10.04996729]
[1754695688256,3.748,4028.0,4027.9,9.58776729]
[1754695688462,4.2171,4028.0,4027.7,2.48379448]
[1754695689050,4.2171,4028.0,4027.8,2.48273649]
[1754695692099,0.4691,4027.9,4027.8,2.48273649]
[1754695692465,0.4691,4027.9,4027.7,2.48380352]
[1754695692765,0.4691,4027.9,4027.8,2.48274492]
[1754695694810,0.4691,4027.9,4027.7,9.58888284]
[1754695695898,3.748,4028.0,4027.7,9.58888284]
[1754695696076,0.4691,4027.8,4027.7,9.58888284]
[1754695700310,0.4691,4027.8,4027.7,7.10608401]
[1754695700975,0.4691,4027.8,4027.7,9.58889057]
[1754695708533,3.748,4028.0,4027.8,2.48273199]
[1754695708894,0.4605,4027.9,4027.8,2.48273199]
[1754695711524,3.748,4028.0,4027.9,2.48268328]
[1754695711934,4.2085,4028.0,4027.9,2.48268328]
[1754695712339,4.6504,4028.0,4027.8,9.58781065]
[1754695712535,3.748,4028.0,4027.8,9.58781065]
[1754695712739,0.9024,4027.9,4027.8,9.58781065]
[1754695712945,0.4605,4027.9,4027.8,9.58781065]
[1754695716843,0.4605,4027.9,4027.8,7.10508401]
[1754695718949,0.4605,4027.9,4027.7,2.48379292]
[1754695718950,0.9024,4027.9,4027.7,0.001]
[1754695719250,0.5659,4027.8,4027.7,0.001]
[1754695719450,1.0264,4027.8,4027.7,0.001]
[1754695721447,1.75520613,4027.8,4027.7,0.001]
[1754695723931,4.78795105,4027.8,4027.7,0.001]
[1754695725037,8.53495105,4027.8,4027.7,0.001]
[1754695735370,8.09825105,4027.8,4027.7,0.001]
[1754695735570,8.55525105,4027.8,4027.7,0.001]
[1754695738392,8.75625105,4027.8,4027.7,0.001]
[1754695741099,8.75625105,4027.8,4027.6,0.201]
[1754695741100,3.03280656,4027.7,4027.6,0.201]
[1754695741404,8.68818458,4027.7,4027.6,0.201]
[1754695741605,8.6571495,4027.7,4027.6,0.201]
[1754695743570,8.8581495,4027.7,4027.6,0.201]
[1754695745525,5.11870576,4027.7,4027.6,0.201]
[1754695745808,6.43480656,4027.7,4027.6,0.201]
[1754695745984,6.90050656,4027.7,4027.6,0.201]
[1754695746187,7.45050656,4027.7,4027.6,0.201]
[1754695751191,7.57450656,4027.7,4027.6,0.201]
[1754695753692,8.03150656,4027.7,4027.6,0.201]
[1754695753887,9.15600688,4027.7,4027.6,0.201]
[1754695755876,9.69104791,4027.7,4027.6,0.201]
[1754695757685,19.79613192,4027.7,4027.6,0.201]
[1754695757884,6.03305316,4027.3,4027.2,0.001]
[1754695758208,10.44309419,4027.3,4027.2,0.001]
[1754695758372,11.36579419,4027.3,4027.2,0.001]
[1754695758570,11.46579419,4027.3,4027.2,0.001]
[1754695758819,13.86812752,4027.3,4027.2,0.001]
[1754695763575,13.99022681,4027.3,4027.2,0.001]
[1754695767319,9.78222681,4027.3,4027.2,0.001]
[1754695767617,13.41112752,4027.3,4027.2,0.001]
[1754695768302,13.85542752,4027.3,4027.2,0.001]
[1754695776827,13.40912752,4027.3,4027.2,0.001]
[1754695781750,13.85342752,4027.3,4027.2,0.001]
[1754695786194,14.52214761,4027.3,4027.2,0.001]
[1754695787214,13.85342752,4027.3,4027.2,0.001]
[1754695791756,13.85342752,4027.3,4027.2,1e-08]
[1754695793455,13.40912752,4027.3,4027.2,1e-08]
[1754695797923,8.64442752,4027.3,4027.2,1e-08]
[1754695798127,7.50804103,4027.3,4027.2,0.46460001]
[1754695798345,0.75904103,4027.3,4027.2,0.46460001]
[1754695798656,4.51104103,4027.3,4027.2,0.46790001]
[1754695799028,4.51104103,4027.3,4027.2,0.46460001]
[1754695799228,4.5110874,4027.3,4027.2,0.46460001]
[1754695799744,3.976,4027.3,4027.2,0.46460001]
[1754695801757,4.51074924,4027.3,4027.2,0.46460001]
[1754695801941,3.976,4027.3,4027.2,0.46460001]
[1754695802542,6.45905316,4027.3,4027.2,1e-08]
[1754695802865,7.4705024,4027.3,4027.2,1e-08]
[1754695803227,8.0205024,4027.3,4027.2,1e-08]
[1754695803631,5.06074924,4027.3,4027.2,1e-08]
[1754695803945,4.526,4027.3,4027.2,0.46460001]
[1754695804266,7.5438024,4027.3,4027.2,0.46460001]
[1754695805363,7.00905316,4027.3,4027.2,0.46460001]
[1754695806445,7.00905316,4027.3,4027.2,1e-08]
[1754695806774,7.54361022,4027.3,4027.2,1e-08]
[1754695807749,8.02031022,4027.3,4027.2,1e-08]
[1754695808973,7.48575316,4027.3,4027.2,1e-08]
[1754695809570,7.00905316,4027.3,4027.2,1e-08]
[1754695810154,7.48575316,4027.3,4027.2,1e-08]
[1754695813164,8.02056169,4027.3,4027.2,1e-08]
[1754695813362,9.16804147,4027.3,4027.2,1e-08]
[1754695813750,9.63934147,4027.3,4027.2,1e-08]
[1754695819552,9.16804147,4027.3,4027.2,1e-08]
[1754695821691,9.63934147,4027.3,4027.2,1e-08]
[1754695825887,9.16804147,4027.3,4027.2,1e-08]
[1754695826690,8.69134147,4027.3,4027.2,1e-08]
[1754695827189,9.18344147,4027.3,4027.2,1e-08]
[1754695827495,9.65124147,4027.3,4027.2,1e-08]
[1754695828262,9.18344147,4027.3,4027.2,1e-08]
[1754695828490,9.65124147,4027.3,4027.2,1e-08]
[1754695828883,9.18344147,4027.3,4027.2,1e-08]
[1754695830768,9.65124147,4027.3,4027.2,1e-08]
[1754695832393,9.18344147,4027.3,4027.2,1e-08]
[1754695832781,9.65124147,4027.3,4027.2,1e-08]
[1754695834373,9.18344147,4027.3,4027.2,1e-08]
[1754695835499,9.65124147,4027.3,4027.2,1e-08]
[1754695837787,12.65124147,4027.3,4027.2,1e-08]
[1754695848188,12.18344147,4027.3,4027.2,1e-08]
[1754695848380,12.18344147,4027.3,4026.8,0.001]
[1754695848381,14.56476839,4026.9,4026.8,0.001]
[1754695848716,21.52139108,4026.9,4026.8,0.001]
[1754695848894,22.70396295,4026.9,4026.8,0.001]
[1754695849306,21.93727549,4026.9,4026.8,0.001]
[1754695852018,24.55227549,4026.9,4026.8,0.001]
[1754695852349,21.93727549,4026.9,4026.8,0.001]
[1754695852814,13.4058069,4026.9,4026.8,0.001]
[1754695852996,21.93727549,4026.9,4026.8,0.001]
[1754695853194,6.03336147,4026.8,4026.7,1e-08]
[1754695853514,9.71623136,4026.8,4026.7,1e-08]
[1754695853722,10.18403136,4026.8,4026.7,1e-08]
[1754695855707,10.28354236,4026.8,4026.7,1e-08]
[1754695857520,10.95024141,4026.8,4026.7,1e-08]
[1754695858407,10.28354236,4026.8,4026.7,1e-08]
[1754695859707,10.28474236,4026.8,4026.7,1e-08]
[1754695863721,9.99059439,4026.8,4026.7,1e-08]
[1754695863920,10.91374928,4026.8,4026.7,1e-08]
[1754695864091,10.24679625,4026.8,4026.7,1e-08]
[1754695865891,0.55,4026.4,4025.9,0.001]
[1754695866200,6.15785494,4026.0,4025.9,0.001]
[1754695866406,10.44641736,4026.0,4025.9,0.001]
[1754695867124,10.87931736,4026.0,4025.9,0.001]
[1754695867358,10.87931736,4026.0,4025.9,0.4339]
[1754695867525,12.21646577,4026.0,4025.9,0.4339]
[1754695868508,12.21646577,4026.0,4025.9,0.001]
[1754695869993,18.18346577,4026.0,4025.9,0.001]
[1754695870926,18.18346577,4026.0,4025.9,0.4339]
[1754695871128,13.09131736,4026.0,4025.9,0.4339]
[1754695871336,16.84531736,4026.0,4025.9,0.4339]
[1754695872533,13.09131736,4026.0,4025.9,0.4339]
[1754695872712,16.84631736,4026.0,4025.9,0.4339]
[1754695875532,17.03424597,4026.0,4025.9,0.4339]
[1754695878338,13.27924597,4026.0,4025.9,0.4339]
[1754695878540,17.03324597,4026.0,4025.9,0.4339]
[1754695879149,17.03324597,4026.0,4025.9,0.001]
[1754695879466,18.30382372,4026.0,4025.9,0.001]
[1754695879621,18.77282372,4026.0,4025.9,0.001]
[1754695880741,18.30382372,4026.0,4025.9,0.001]
[1754695882235,17.84842372,4026.0,4025.9,0.001]
[1754695883436,18.30382372,4026.0,4025.9,0.001]
[1754695885138,17.84842372,4026.0,4025.9,0.001]
[1754695887265,18.30142372,4026.0,4025.9,0.001]
[1754695888543,18.74982372,4026.0,4025.9,0.001]
[1754695889348,19.41688651,4026.0,4025.9,0.001]
[1754695890968,18.96848651,4026.0,4025.9,0.001]
[1754695891171,19.41688651,4026.0,4025.9,0.001]
[1754695892066,18.96848651,4026.0,4025.9,0.001]
[1754695892246,18.74982372,4026.0,4025.9,0.001]
[1754695892647,18.74982372,4026.0,4025.8,0.001]
[1754695892872,14.56563204,4025.5,4025.4,0.001]
[1754695893166,18.97619446,4025.5,4025.4,0.001]
[1754695893575,19.97759446,4025.5,4025.4,0.001]
[1754695894953,11.44612587,4025.5,4025.4,0.001]
[1754695895149,6.90956214,4025.5,4025.4,0.001]
[1754695895355,9.99472587,4025.5,4025.4,0.4411]
[1754695895554,10.54472587,4025.5,4025.4,0.001]
[1754695895976,9.99472587,4025.5,4025.4,0.001]
[1754695896869,10.54472587,4025.5,4025.4,0.001]
[1754695897172,10.99772587,4025.5,4025.4,0.001]
[1754695897401,12.41269024,4025.5,4025.4,0.001]
[1754695901878,3.0343486,4025.2,4025.1,0.001]
[1754695902047,9.9133486,4025.2,4025.1,0.001]
[1754695902377,10.44691102,4025.2,4025.1,0.001]
[1754695902573,10.54643902,4025.2,4025.1,0.001]
[1754695902786,10.54643902,4025.2,4025.1,0.4411]
[1754695904079,10.0128766,4025.2,4025.1,0.4411]
[1754695904648,3.978528,4025.2,4025.1,0.4411]
[1754695904976,3.978528,4025.2,4025.1,0.4444]
[1754695905157,6.4628766,4025.2,4025.1,0.4444]
[1754695905473,6.4628766,4025.2,4025.1,0.4411]
[1754695905660,3.978528,4025.2,4025.1,0.4411]
[1754695905976,3.978528,4025.2,4025.1,0.4444]
[1754695906878,3.978528,4025.2,4025.1,0.4411]
[1754695906879,6.4628766,4025.2,4025.1,0.4411]
[1754695907070,6.4628766,4025.2,4025.1,0.001]
[1754695907378,3.978528,4025.2,4025.1,0.4411]
[1754695908576,3.977528,4025.2,4025.1,0.4411]
[1754695908949,0.223528,4025.2,4025.1,0.4411]
[1754695909146,3.977528,4025.2,4025.1,0.4411]
[1754695914780,3.977528,4025.2,4025.1,0.001]
[1754695915284,3.977528,4025.2,4025.1,0.4747]
[1754695915849,0.53388745,4025.8,4025.7,2.48404004]
[1754695916051,0.124,4026.2,4025.7,9.00516859]
[1754695916260,3.757,4026.1,4025.8,0.4737]
[1754695916459,3.757,4026.1,4026.0,2.48385494]
[1754695916759,3.757,4026.1,4026.0,2.95755494]
[1754695917160,3.757,4026.1,4026.0,4.28546313]
[1754695917402,3.757,4026.1,4026.0,2.95755494]
[1754695918793,3.759,4026.1,4026.0,2.95755494]
[1754695920108,0.55,4026.0,4025.0,0.001]
[1754695920399,0.55,4025.8,4025.1,0.002]
[1754695920615,0.55,4025.6,4025.1,0.002]
[1754695921105,0.4643,4025.5,4025.1,0.002]
[1754695921465,0.4643,4025.4,4025.1,0.002]
[1754695921681,3.775,4025.3,4025.1,0.002]
[1754695922097,4.2393,4025.3,4025.1,0.002]
[1754695922266,3.775,4025.3,4025.1,0.002]
[1754695923182,4.2393,4025.3,4025.1,0.002]
[1754695923385,0.4643,4025.2,4025.1,0.002]
[1754695924591,3.775,4025.3,4025.1,0.002]
[1754695926488,3.775,4025.3,4025.2,0.4737]
[1754695927104,3.775,4025.3,4025.2,2.9580486]
[1754695927450,3.775,4025.3,4025.2,2.4843486]
[1754695927586,3.775,4025.3,4025.1,0.25074649]
[1754695927777,4.2393,4025.3,4025.1,0.002]
[1754695927972,0.4643,4025.2,4025.1,0.002]
[1754695928888,4.2073,4025.3,4025.1,0.002]
[1754695928889,3.775,4025.3,4025.1,0.002]
[1754695929084,2.48470566,4024.7,4024.1,0.1]
[1754695929286,0.55,4025.1,4024.1,0.1]
[1754695929287,6.25771897,4024.6,4024.1,0.1]
[1754695929498,8.5925544,4024.6,4024.1,0.1]
[1754695930124,8.7165544,4024.6,4024.1,0.1]
[1754695935220,8.7165544,4024.6,4023.9,0.001]
[1754695935221,0.55,4024.1,4023.9,0.001]
[1754695935420,9.43715307,4024.0,4023.9,0.001]
[1754695935619,11.80644822,4024.0,4023.9,0.001]
[1754695936218,11.80644822,4024.0,4023.1,0.1]
[1754695936219,3.03558361,4023.2,4023.1,0.1]
[1754695936401,6.95558361,4023.2,4023.1,0.1]
[1754695936803,7.85218361,4023.2,4023.1,0.1]
[1754695937235,10.85218361,4023.2,4023.1,0.1]
[1754695937405,13.03909887,4023.2,4023.1,0.1]
[1754695938505,12.91509887,4023.2,4023.1,0.1]
[1754695938910,12.01849887,4023.2,4023.1,0.1]
[1754695939112,12.91509887,4023.2,4023.1,0.1]
[1754695940634,12.48279887,4023.2,4023.1,0.1]
[1754695941735,12.48279887,4023.2,4023.1,0.101]
[1754695942302,12.91509887,4023.2,4023.1,0.101]
[1754695945940,12.48279887,4023.2,4023.1,0.101]
[1754695947606,12.01849887,4023.2,4023.1,0.101]
[1754695947804,9.83158361,4023.2,4023.1,0.101]
[1754695948308,10.43158361,4023.2,4023.1,0.101]
[1754695953048,0.124,4023.2,4023.1,0.5638]
[1754695953361,3.915,4023.2,4023.1,0.101]
[1754695954746,6.40058361,4023.2,4023.1,0.101]
[1754695955177,7.89318361,4023.2,4023.1,0.101]
[1754695955473,11.78178868,4023.2,4023.1,0.101]
[1754695955674,11.31518868,4023.2,4023.1,0.101]
[1754695956032,11.78178868,4023.2,4023.1,0.101]
[1754695959650,12.31308324,4023.2,4023.1,0.101]
[1754695961842,18.28408324,4023.2,4023.1,0.101]
[1754695962437,17.34148324,4023.2,4023.1,0.101]
[1754695962637,17.81748324,4023.2,4023.1,0.101]
[1754695963774,13.55048324,4023.2,4023.1,0.101]
[1754695964084,16.45087817,4023.2,4023.1,0.101]
[1754695964863,10.41529456,4023.2,4023.1,0.5638]
[1754695965172,10.96683517,4023.2,4023.1,0.5638]
[1754695965367,10.434,4023.2,4023.1,0.5638]
[1754695965571,4.463,4023.2,4023.1,0.5638]
[1754695966682,4.99586046,4023.2,4023.1,0.5638]
[1754695966845,4.463,4023.2,4023.1,0.5638]
[1754695970073,4.463,4023.2,4023.1,0.101]
[1754695971174,6.94858361,4023.2,4023.1,0.101]
[1754695971475,4.463,4023.2,4023.1,0.101]
[1754695973573,4.463,4023.2,4023.1,0.5638]
[1754695973768,4.463,4023.2,4023.1,0.101]
[1754695977170,6.94858361,4023.2,4023.1,0.101]
[1754695977364,4.9222,4023.2,4023.1,0.101]
[1754695977967,4.463,4023.2,4023.1,0.101]
[1754695980073,3.913,4023.2,4023.1,0.5582]
[1754695980277,3.907,4023.2,4023.1,0.86259789]
[1754695980455,3.907,4023.2,4023.1,0.5582]
[1754695980659,3.907,4023.2,4023.1,3.04384539]
[1754695990097,3.907,4023.2,4023.1,2.58664539]
[1754695990502,3.907,4023.2,4023.1,3.04384539]
[1754695992704,5.2407,4023.2,4023.1,0.101]
[1754695992910,4.1737,4023.2,4023.1,0.101]
[1754695993204,2.48541916,4023.5,4023.1,0.101]
[1754695993381,3.792,4023.4,4023.1,0.101]
[1754695993700,4.6997,4023.4,4023.1,0.101]
[1754695993882,4.2405,4023.4,4023.1,0.101]
[1754695994081,0.4592,4023.3,4023.1,0.101]
[1754695994286,2.48558361,4023.2,4023.1,0.101]
[1754695994492,3.39328361,4023.2,4023.1,0.101]
[1754695995209,4.91035919,4023.2,4023.1,0.101]
[1754695998486,8.70235919,4023.2,4023.1,0.101]
[1754695999873,9.44918819,4023.2,4023.1,0.101]
[1754696002718,9.57318819,4023.2,4023.1,0.101]
[1754696007525,12.57318819,4023.2,4023.1,0.101]
[1754696007687,13.10593858,4023.2,4023.1,0.101]
[1754696007894,13.10593715,4023.2,4023.1,0.101]
[1754696008601,12.57318819,4023.2,4023.1,0.101]
[1754696008796,13.10584534,4023.2,4023.1,0.101]
[1754696009792,13.10584534,4023.2,4023.1,1e-08]
[1754696010626,13.77957696,4023.2,4023.1,1e-08]
[1754696010799,13.11428582,4023.2,4023.1,1e-08]
[1754696011199,13.77932759,4023.2,4023.1,1e-08]
[1754696011726,13.11428582,4023.2,4023.1,1e-08]
[1754696012327,13.77907953,4023.2,4023.1,1e-08]
[1754696012488,13.11428582,4023.2,4023.1,1e-08]
[1754696013417,13.77888619,4023.2,4023.1,1e-08]
[1754696013790,13.11428582,4023.2,4023.1,1e-08]
[1754696014737,13.43182715,4023.2,4023.1,1e-08]
[1754696015834,13.11228582,4023.2,4023.1,1e-08]
[1754696016634,6.03589255,4022.7,4022.6,1e-08]
[1754696016843,19.86618855,4022.7,4022.6,1e-08]
[1754696017032,20.79678855,4022.7,4022.6,1e-08]
[1754696017911,20.89678855,4022.7,4022.6,1e-08]
[1754696018931,16.17618855,4022.7,4022.6,1e-08]
[1754696019146,11.90951996,4022.7,4022.6,1e-08]
[1754696021836,12.36631996,4022.7,4022.6,1e-08]
[1754696022361,20.89778855,4022.7,4022.6,1e-08]
[1754696025348,21.02173975,4022.7,4022.6,1e-08]
[1754696031933,12.49027116,4022.7,4022.6,1e-08]
[1754696032133,21.02173975,4022.7,4022.6,1e-08]
[1754696032960,7.76867116,4022.7,4022.6,1e-08]
[1754696033257,6.50089255,4022.7,4022.6,0.44970001]
[1754696033470,7.05089255,4022.7,4022.6,0.44970001]
[1754696033674,6.50089255,4022.7,4022.6,0.44970001]
[1754696034030,7.05089255,4022.7,4022.6,0.44970001]
[1754696037175,7.05089255,4022.7,4022.6,1e-08]
[1754696037176,12.51197398,4022.7,4022.6,1e-08]
[1754696037375,13.04483911,4022.7,4022.6,1e-08]
[1754696037825,13.70937935,4022.7,4022.6,1e-08]
[1754696039349,13.27996233,4022.7,4022.6,1e-08]
[1754696039658,13.71126233,4022.7,4022.6,1e-08]
[1754696040735,11.61447398,4022.7,4022.6,1e-08]
[1754696040932,12.14761021,4022.7,4022.6,1e-08]
[1754696041147,12.14961021,4022.7,4022.6,1e-08]
[1754696041680,7.03602878,4022.7,4022.6,0.44920001]
[1754696041834,10.03602878,4022.7,4022.6,0.44920001]
[1754696042173,10.58602878,4022.7,4022.6,0.44920001]
[1754696042542,6.79302878,4022.7,4022.6,0.44920001]
[1754696042733,4.017,4022.7,4022.6,0.45120001]
[1754696043462,4.567,4022.7,4022.6,0.45120001]
[1754696043658,4.017,4022.7,4022.6,0.45120001]
[1754696044442,4.017,4022.7,4022.6,0.44920001]
[1754696044643,4.017,4022.7,4022.6,0.74473362]
[1754696044840,4.017,4022.7,4022.6,0.45120001]
[1754696045042,4.017,4022.7,4022.6,2.93715436]
[1754696045043,0.224,4022.7,4022.6,2.93715436]
[1754696045238,4.019,4022.7,4022.6,0.45120001]
[1754696045452,4.019,4022.7,4022.6,2.93715436]
[1754696045767,0.224,4022.7,4022.6,2.93715436]
[1754696045972,3.894,4022.7,4022.6,3.47947582]
[1754696046171,3.794,4022.7,4022.6,3.47947582]
[1754696047187,0.124,4022.8,4022.7,2.48589255]
[1754696047339,3.919,4022.8,4022.7,2.48589255]
[1754696047545,3.919,4022.8,4022.7,2.93709255]
[1754696047849,3.919,4022.8,4022.7,3.53362939]
[1754696048253,3.795,4022.8,4022.7,3.53362939]
[1754696050645,0.31106183,4023.5,4023.2,2.48558361]